Workbook

Sheet １部
B1: ２０２５年 （一社）高知県バスケットボール協会 Ｕ１２部会 リーグ戦
C3: 【 男子 1部 】
B4: チーム名 | C4: 南国Ａ | G4: よこうち | K4: ZEROＡ | O4: 横 浜 | S4: 高 知 | W4: 昭 和 | AA4: 勝 敗 | AB4: 勝点 | AC4: 得点 | AD4: 失点 | AE4: 得失 点差 | AF4: 順位
B5: 南国Ａ | G5: 2025-05-18 | K5: 2025-05-18 | O5: 2025-05-31 | S5: 2025-05-31 | W5: 2025-06-01 | AA5: 3勝2敗 | AB5: 10 | AC5: =SUM(H6+P6+T6+X6) -> 175 | AD5: =SUM(J6+R6+V6+Z6) -> 126 | AE5: =AC5-AD5 -> 49 | AF5: 3
G6: ◎ | H6: 56 | J6: 16 | K6: ✖ | L6: 0 | N6: 20 | O6: ● | P6: 30 | R6: 47 | S6: ◎ | T6: 44 | V6: 35 | W6: ◎ | X6: 45 | Z6: 28
B7: よこうち | C7: 2025-05-18 | K7: 2025-05-18 | O7: 2025-05-17 | S7: 2025-04-27 | W7: 2025-04-27 | AA7: 1勝4敗 | AB7: 7 | AC7: =SUM(D8+L8+P8+T8+X8) -> 162 | AD7: =SUM(F8+N8+R8+V8+Z8) -> 256 | AE7: =SUM(AC7-AD7) -> -94 | AF7: 4 | AI7: 高知大津
C8: ● | D8: 16 | F8: 56 | K8: ● | L8: 29 | N8: 56 | O8: ● | P8: 29 | R8: 63 | S8: ● | T8: 41 | V8: 42 | W8: ◎ | X8: 47 | Z8: 39 | AI8: 高知一宮
B9: ZEROＡ | C9: 2025-05-18 | G9: 2025-05-18 | O9: 2025-05-31 | S9: 2025-05-31 | W9: 2025-06-01 | AA9: 4勝1敗 | AB9: 13 | AC9: =SUM(H10+P10+T10+X10) -> 230 | AD9: =SUM(J10+R10+V10+Z10) -> 141 | AE9: =SUM(AC9-AD9) -> 89 | AF9: 2 | AI9: い の
C10: 〇 | D10: 20 | F10: 0 | G10: ◎ | H10: 56 | J10: 29 | O10: ● | P10: 39 | R10: 55 | S10: ◎ | T10: 53 | V10: 30 | W10: ◎ | X10: 82 | Z10: 27 | AI10: 三 里
B11: 横 浜 | C11: 2025-05-31 | G11: 2025-05-17 | K11: 2025-05-31 | S11: 2025-04-27 | W11: 2025-04-27 | AA11: 5勝0敗 | AB11: 15 | AC11: =SUM(D12+H12+L12+T12+X12) -> 297 | AD11: =SUM(F12+J12+N12+V12+Z12) -> 169 | AE11: =SUM(AC11-AD11) -> 128 | AF11: 1 | AI11: 高 知
C12: ◎ | D12: 47 | F12: 30 | G12: ◎ | H12: 63 | J12: 29 | K12: ◎ | L12: 55 | N12: 39 | S12: ◎ | T12: 63 | V12: 39 | W12: ◎ | X12: 69 | Z12: 32 | AI12: 昭 和
B13: 高 知 | C13: 2025-05-31 | G13: 2025-04-27 | K13: 2025-05-31 | O13: 2025-04-27 | W13: 2025-04-26 | AA13: 1勝4敗 | AB13: 7 | AC13: =SUM(D14+H14+L14+P14+X14) -> 189 | AD13: =SUM(F14+J14+N14+R14+Z14) -> 245 | AE13: =SUM(AC13-AD13) -> -56 | AF13: 5
C14: ● | D14: 35 | F14: 44 | G14: ◎ | H14: 42 | J14: 41 | K14: ● | L14: 30 | N14: 53 | O14: ● | P14: 39 | R14: 63 | W14: ● | X14: 43 | Z14: 44
B15: 昭 和 | C15: 2025-06-01 | G15: 2025-04-27 | K15: 2025-06-01 | O15: 2025-04-27 | S15: 2025-04-26 | AA15: 1勝4敗 | AB15: 7 | AC15: =SUM(D16+H16+L16+P16+T16) -> 170 | AD15: =SUM(F16+J16+N16+R16+V16) -> 286 | AE15: =AC15-AD15 -> -116 | AF15: 6
C16: ● | D16: 28 | F16: 45 | G16: ● | H16: 39 | J16: 47 | K16: ● | L16: 27 | N16: 82 | O16: ● | P16: 32 | R16: 69 | S16: ◎ | T16: 44 | V16: 43 | AL16: 得点 | AM16: 失点
AK17: 高知大津 | AL17: 79 | AM17: 69 | AN17: =AL17-AM17 -> 10
B18: ・順位は勝点制で決定する | T18: ・勝点が同じの場合の順位決定方法 | AK18: 高知一宮 | AL18: 77 | AM18: 84 | AN18: =AL18-AM18 -> -7
B19: 勝 | C19: 不戦勝 | G19: 引分 | K19: 敗 | O19: 棄権 | T19: 第１優先 該当チーム間の勝敗で順位を決定する | AK19: 三里 | AL19: 73 | AM19: 76 | AN19: -3
B20: ◎ | C20: 〇 | G20: △ | K20: ● | O20: ✖ | T20: 第２優先 該当チーム間の得失点差（総得点ー総失点）の大なるチームが上位
B21: ３点 | C21: ３点 | G21: ２点 | K21: １点 | O21: ０点 | T21: 第３優先 該当チーム間のゴールアベレージ（総得点÷総失点）の大なるチームが上位

Sheet ２部
B1: ２０２５年 （一社）高知県バスケットボール協会 Ｕ１２部会 リーグ戦
C3: 【 男子 ２部 】
B4: チーム名 | C4: 潮江南 | G4: 鴨 田 | K4: 高知城北Ａ | O4: 竹 島 | S4: 高知ONE | W4: い の | AA4: 勝 敗 | AB4: 勝点 | AC4: 得点 | AD4: 失点 | AE4: 得失 点差 | AF4: 順位
B5: 潮江南 | G5: 2025-04-27 | K5: 2025-05-31 | O5: 2025-05-31 | S5: 2025-06-01 | W5: 2025-04-27 | AA5: 2勝3敗 | AB5: 9 | AC5: =SUM(H6+L6+P6+T6+X6) -> 186 | AD5: =SUM(J6+N6+R6+V6+Z6) -> 248 | AE5: =AC5-AD5 -> -62 | AF5: 4
G6: ● | H6: 34 | J6: 46 | K6: ● | L6: 50 | N6: 56 | O6: ● | P6: 20 | R6: 71 | S6: ◎ | T6: 51 | V6: 49 | W6: ◎ | X6: 31 | Z6: 26
B7: 鴨 田 | C7: 2025-04-27 | K7: 2025-05-31 | O7: 2025-05-31 | S7: 2025-04-27 | W7: 2025-06-01 | AA7: 4勝1敗 | AB7: 13 | AC7: =SUM(D8+L8+P8+T8+X8) -> 211 | AD7: =SUM(F8+N8+R8+V8+Z8) -> 165 | AE7: =AC7-AD7 -> 46 | AF7: 2
C8: ◎ | D8: 46 | F8: 34 | K8: ◎ | L8: 46 | N8: 39 | O8: ● | P8: 29 | R8: 48 | S8: ◎ | T8: 43 | V8: 34 | W8: ◎ | X8: 47 | Z8: 10
B9: 高知城北Ａ | C9: 2025-05-31 | G9: 2025-05-31 | O9: 2025-04-27 | S9: 2025-04-27 | W9: 2025-06-01 | AA9: 3勝2敗 | AB9: 11 | AC9: =SUM(D10+H10+P10+T10+X10) -> 218 | AD9: =SUM(F10+J10+R10+V10+Z10) -> 221 | AE9: =AC9-AD9 -> -3 | AF9: 3
C10: ◎ | D10: 56 | F10: 50 | G10: ● | H10: 39 | J10: 46 | O10: ● | P10: 15 | R10: 58 | S10: ◎ | T10: 47 | V10: 37 | W10: ◎ | X10: 61 | Z10: 30
B11: 竹 島 | C11: 2025-05-31 | G11: 2025-05-31 | K11: 2025-04-27 | S11: 2025-06-01 | W11: 2025-04-27 | AA11: 5勝0敗 | AB11: 15 | AC11: =SUM(D12+H12+L12+T12+X12) -> 280 | AD11: =SUM(F12+J12+N12+V12+Z12) -> 102 | AE11: =AC11-AD11 -> 178 | AF11: 1
C12: ◎ | D12: 71 | F12: 20 | G12: ◎ | H12: 48 | J12: 29 | K12: ◎ | L12: 58 | N12: 15 | S12: ◎ | T12: 40 | V12: 16 | W12: ◎ | X12: 63 | Z12: 22
B13: 高知ONE | C13: 2025-06-01 | G13: 2025-04-27 | K13: 2025-04-27 | O13: 2025-06-01 | W13: 2025-04-26 | AA13: 1勝4敗 | AB13: 7 | AC13: =SUM(D14+H14+L14+P14+X14) -> 189 | AD13: =SUM(F14+J14+N14+R14+Z14) -> 217 | AE13: =AC13-AD13 -> -28 | AF13: 5
C14: ● | D14: 49 | F14: 51 | G14: ● | H14: 34 | J14: 43 | K14: ● | L14: 37 | N14: 47 | O14: ● | P14: 16 | R14: 40 | W14: ◎ | X14: 53 | Z14: 36
B15: い の | C15: 2025-04-27 | G15: 2025-06-01 | K15: 2025-06-01 | O15: 2025-04-27 | S15: 2025-04-26 | AA15: 0勝5敗 | AB15: 5 | AC15: =SUM(D16+H16+L16+P16+T16) -> 124 | AD15: =SUM(F16+J16+N16+R16+V16) -> 255 | AE15: =AC15-AD15 -> -131 | AF15: 6
C16: ● | D16: 26 | F16: 31 | G16: ● | H16: 10 | J16: 47 | K16: ● | L16: 30 | N16: 61 | O16: ● | P16: 22 | R16: 63 | S16: ● | T16: 36 | V16: 53
B18: ・順位は勝点制で決定する | T18: ・勝点が同じの場合の順位決定方法
B19: 勝 | C19: 不戦勝 | G19: 引分 | K19: 敗 | O19: 棄権 | T19: 第１優先 該当チーム間の勝敗で順位を決定する
B20: ◎ | C20: 〇 | G20: △ | K20: ● | O20: ✖ | T20: 第２優先 該当チーム間の得失点差（総得点ー総失点）の大なるチームが上位
B21: ３点 | C21: ３点 | G21: ２点 | K21: １点 | O21: ０点 | T21: 第３優先 該当チーム間のゴールアベレージ（総得点÷総失点）の大なるチームが上位

Sheet 3部Ａ
B1: ２０２５年 （一社）高知県バスケットボール協会 Ｕ１２部会 リーグ戦
C3: 【 男子 3部Ａ 】
B4: チーム名 | C4: 南国Ｂ | G4: 梼 原 | K4: 高知一宮 | O4: 高知大津 | S4: ZEROＢ | W4: 高知城北Ｂ | AA4: 勝 敗 | AB4: 勝点 | AC4: 得点 | AD4: 失点 | AE4: 得失 点差 | AF4: 順位
B5: 南国Ｂ | G5: 2025-05-18 | K5: 2025-05-18 | O5: 2025-05-18 | S5: 2025-06-01 | W5: 2025-06-01 | AA5: 3勝2敗 | AB5: 11 | AC5: =SUM(H6+L6+P6+T6+X6) -> 176 | AD5: =SUM(J6+N6+R6+V6+Z6) -> 170 | AE5: =AC5-AD5 -> 6 | AF5: 3
G6: ◎ | H6: 44 | J6: 37 | K6: ● | L6: 22 | N6: 47 | O6: ● | P6: 11 | R6: 44 | S6: ◎ | T6: 47 | V6: 34 | W6: ◎ | X6: 52 | Z6: 8
B7: 梼 原 | C7: 2025-05-18 | K7: 2025-05-18 | O7: 2025-05-18 | S7: 2025-06-01 | W7: 2025-06-01 | AA7: 1勝4敗 | AB7: 7 | AC7: =SUM(D8+L8+P8+T8+X8) -> 241 | AD7: =SUM(F8+N8+R8+V8+Z8) -> 206 | AE7: =AC7-AD7 -> 35 | AF7: 5
C8: ● | D8: 37 | F8: 44 | K8: ● | L8: 34 | N8: 50 | O8: ● | P8: 34 | R8: 49 | S8: ● | T8: 42 | V8: 49 | W8: ◎ | X8: 94 | Z8: 14
B9: 高知一宮 | C9: 2025-05-18 | G9: 2025-05-18 | O9: 2025-05-18 | S9: 2025-04-27 | W9: 2025-04-27 | AA9: 4勝1敗 | AB9: 13 | AC9: =SUM(D10+H10+P10+T10+X10) -> 293 | AD9: =SUM(F10+J10+R10+V10+Z10) -> 115 | AE9: =AC9-AD9 -> 178 | AF9: 2
C10: ◎ | D10: 47 | F10: 22 | G10: ◎ | H10: 50 | J10: 34 | O10: ● | P10: 36 | R10: 38 | S10: ◎ | T10: 58 | V10: 19 | W10: ◎ | X10: 102 | Z10: 2
B11: 高知大津 | C11: 2025-05-18 | G11: 2025-05-18 | K11: 2025-05-18 | S11: 2025-04-27 | W11: 2025-04-27 | AA11: 5勝0敗 | AB11: 15 | AC11: =SUM(D12+H12+L12+T12+X12) -> 256 | AD11: =SUM(F12+J12+N12+V12+Z12) -> 106 | AE11: =AC11-AD11 -> 150 | AF11: 1
C12: ◎ | D12: 44 | F12: 11 | G12: ◎ | H12: 49 | J12: 34 | K12: ◎ | L12: 38 | N12: 36 | S12: ◎ | T12: 37 | V12: 13 | W12: ◎ | X12: 88 | Z12: 12
B13: ZEROＢ | C13: 2025-06-01 | G13: 2025-06-01 | K13: 2025-04-27 | O13: 2025-04-27 | W13: 2025-05-31 | AA13: 2勝3敗 | AB13: 9 | AC13: =SUM(D14+H14+L14+P14+X14) -> 162 | AD13: =SUM(F14+J14+N14+R14+Z14) -> 194 | AE13: =AC13-AD13 -> -32 | AF13: 4
C14: ● | D14: 34 | F14: 47 | G14: ◎ | H14: 49 | J14: 42 | K14: ● | L14: 19 | N14: 58 | O14: ● | P14: 13 | R14: 37 | W14: ◎ | X14: 47 | Z14: 10
B15: 高知城北Ｂ | C15: 2025-06-01 | G15: 2025-06-01 | K15: 2025-04-27 | O15: 2025-04-27 | S15: 2025-05-31 | AA15: 0勝5敗 | AB15: 5 | AC15: =SUM(D16+H16+L16+P16+T16) -> 46 | AD15: =SUM(F16+J16+N16+R16+V16) -> 383 | AE15: =AC15-AD15 -> -337 | AF15: 6
C16: ● | D16: 8 | F16: 52 | G16: ● | H16: 14 | J16: 94 | K16: ● | L16: 2 | N16: 102 | O16: ● | P16: 12 | R16: 88 | S16: ● | T16: 10 | V16: 47
B18: ・順位は勝点制で決定する | T18: ・勝点が同じの場合の順位決定方法
B19: 勝 | C19: 不戦勝 | G19: 引分 | K19: 敗 | O19: 棄権 | T19: 第１優先 該当チーム間の勝敗で順位を決定する
B20: ◎ | C20: 〇 | G20: △ | K20: ● | O20: ✖ | T20: 第２優先 該当チーム間の得失点差（総得点ー総失点）の大なるチームが上位
B21: ３点 | C21: ３点 | G21: ２点 | K21: １点 | O21: ０点 | T21: 第３優先 該当チーム間のゴールアベレージ（総得点÷総失点）の大なるチームが上位

Sheet 3部Ｂ
B1: ２０２５年 （一社）高知県バスケットボール協会 Ｕ１２部会 リーグ戦
C3: 【 男子 3部Ｂ 】
B4: チーム名 | C4: 大 方 | G4: 春 野 | K4: Crazy | O4: 土佐サンズ | S4: いずみの | W4: 朝倉第二 | AA4: 勝 敗 | AB4: 勝点 | AC4: 得点 | AD4: 失点 | AE4: 得失 点差 | AF4: 順位
B5: 大 方 | G5: 2025-04-26 | K5: 2025-06-15 | O5: 2025-04-26 | S5: 2025-06-15 | W5: 2025-05-17 | AA5: 4勝1敗 | AB5: 13 | AC5: =SUM(H6+L6+P6+T6+X6) -> 265 | AD5: =SUM(J6+N6+R6+V6+Z6) -> 163 | AE5: =AC5-AD5 -> 102 | AF5: 2
G6: ◎ | H6: 68 | J6: 27 | K6: ◎ | L6: 51 | N6: 29 | O6: ◎ | P6: 66 | R6: 19 | S6: ● | T6: 31 | V6: 51 | W6: ◎ | X6: 49 | Z6: 37
B7: 春 野 | C7: 2025-04-26 | K7: 2025-04-26 | O7: 2025-06-15 | S7: 2025-04-27 | W7: 2025-06-15 | AA7: 1勝4敗 | AB7: 7 | AC7: =SUM(D8+L8+P8+T8+X8) -> 165 | AD7: =SUM(F8+N8+R8+V8+Z8) -> 281 | AE7: =AC7-AD7 -> -116 | AF7: 5
C8: ● | D8: 27 | F8: 68 | K8: ● | L8: 21 | N8: 56 | O8: ◎ | P8: 60 | R8: 38 | S8: ● | T8: 27 | V8: 67 | W8: ● | X8: 30 | Z8: 52
B9: Crazy | C9: 2025-06-15 | G9: 2025-04-26 | O9: 2025-04-26 | S9: 2025-06-15 | AA9: 2勝3敗 | AB9: 8 | AC9: =SUM(D10+H10+P10+T10+X10) -> 163 | AD9: =SUM(F10+J10+R10+V10) -> 157 | AE9: =AC9-AD9 -> 6 | AF9: 4
C10: ● | D10: 29 | F10: 51 | G10: ◎ | H10: 56 | J10: 21 | O10: ◎ | P10: 61 | R10: 27 | S10: ● | T10: 17 | V10: 58 | W10: ✖ | X10: 0 | Z10: 20
B11: 土佐サンズ | C11: 2025-04-26 | G11: 2025-06-15 | K11: 2025-04-26 | S11: 2025-04-27 | W11: 2025-06-15 | AA11: 0勝5敗 | AB11: 5 | AC11: =SUM(D12+H12+L12+T12+X12) -> 128 | AD11: =SUM(F12+J12+N12+V12+Z12) -> 326 | AE11: =AC11-AD11 -> -198 | AF11: 6
C12: ● | D12: 19 | F12: 66 | G12: ● | H12: 38 | J12: 60 | K12: ● | L12: 27 | N12: 61 | S12: ● | T12: 18 | V12: 84 | W12: ● | X12: 26 | Z12: 55
B13: いずみの | C13: 2025-06-15 | G13: 2025-04-27 | K13: 2025-06-15 | O13: 2025-04-27 | W13: 2025-06-14 | AA13: 5勝0敗 | AB13: 15 | AC13: =SUM(D14+H14+L14+P14+X14) -> 312 | AD13: =SUM(F14+J14+N14+R14+Z14) -> 124 | AE13: =AC13-AD13 -> 188 | AF13: 1
C14: ◎ | D14: 51 | F14: 31 | G14: ◎ | H14: 67 | J14: 27 | K14: ◎ | L14: 58 | N14: 17 | O14: ◎ | P14: 84 | R14: 18 | W14: ◎ | X14: 52 | Z14: 31
B15: 朝倉第二 | C15: 2025-05-17 | G15: 2025-06-15 | O15: 2025-06-15 | S15: 2025-06-14 | AA15: 3勝2敗 | AB15: 11 | AC15: =SUM(D16+H16+P16+T16) -> 175 | AD15: =SUM(F16+J16+N16+R16+V16) -> 157 | AE15: =AC15-AD15 -> 18 | AF15: 3
C16: ● | D16: 37 | F16: 49 | G16: ◎ | H16: 52 | J16: 30 | K16: 〇 | L16: 20 | N16: 0 | O16: ◎ | P16: 55 | R16: 26 | S16: ● | T16: 31 | V16: 52
B18: ・順位は勝点制で決定する | T18: ・勝点が同じの場合の順位決定方法
B19: 勝 | C19: 不戦勝 | G19: 引分 | K19: 敗 | O19: 棄権 | T19: 第１優先 該当チーム間の勝敗で順位を決定する
B20: ◎ | C20: 〇 | G20: △ | K20: ● | O20: ✖ | T20: 第２優先 該当チーム間の得失点差（総得点ー総失点）の大なるチームが上位
B21: ３点 | C21: ３点 | G21: ２点 | K21: １点 | O21: ０点 | T21: 第３優先 該当チーム間のゴールアベレージ（総得点÷総失点）の大なるチームが上位
